Cogmind - Beta 16 @@@ ROGUE MODE // 2025.12.01 @ 02:15:42 Player: Maxfecteau Result: Destroyed by Autobeam Turret with Autobeam Performance ------------- Evolutions (0) 0 Regions Visited (2) 400 Robots Destroyed (22) 110 Value Destroyed (398) 398 Prototype IDs (2) 40 Alien Tech Used (0) 0 Bonus (0) 0 TOTAL SCORE: 948 Bonus ------- None Cogmind --------- Core Integrity 0/250 Matter 300/300 Energy 96/100 System Corruption 0% Temperature Cool (30) Movement Core (50) Location -10/Subcaves Parts ------- > --- POWER (1) -------- (None) > --- PROPULSION (2) --- (None) > --- UTILITY (2) ------ Seismic Detector > --- WEAPON (2) ------- (None) > --- INVENTORY (5) ---- Subdweller Power Source Small Storage Unit Large Storage Unit Subdweller Optics Rocket Launcher Peak State ------------ > --- POWER ------------ Subdweller Power Source > --- PROPULSION ------- Subdweller Monowheel > --- UTILITY ---------- Large Storage Unit Subdweller Optics > --- WEAPON ----------- Subdweller Machine Gun > --- INVENTORY -------- Ion Engine Small Storage Unit Large Storage Unit Improved Terrain Scanner Seismic Detector Seismic Detector ECM Suite Rocket Launcher Rocket Launcher [Rating: 10] Favorites ----------- Power Ion Engine Engine Ion Engine Power Core Light Nuclear Core Propulsion Light Treads Treads Light Treads Wheel Subdweller Monowheel Utility Seismic Detector Device Seismic Detector Storage Large Storage Unit Weapon Light Assault Rifle Ballistic Gun Light Assault Rifle Special Weapon Flamer Build | -11 -10 -10 ------- Run | Yrd Mat Sub Slots Evolved . | . . . Power . | . . . Propulsion . | . . . Utility . | . . . Weapon . | . . . Parts Attached 18 | 7 2 9 Power 4 | 1 . 3 Engine 3 | 1 . 2 Core 1 | . . 1 Reactor . | . . . Propulsion 4 | 2 1 1 Treads 3 | 2 1 . Leg . | . . . Wheel 1 | . . 1 Hover . | . . . Flight . | . . . Utility 6 | 2 1 3 Device 4 | 1 . 3 Storage 2 | 1 1 . Processor . | . . . Hackware . | . . . Protection . | . . . Artifact . | . . . Weapon 4 | 2 . 2 Energy Gun . | . . . Energy Cannon . | . . . Ballistic Gun 3 | 2 . 1 Ballistic Cannon . | . . . Launcher . | . . . Special Weapon 1 | . . 1 Impact Weapon . | . . . Slashing Weapon . | . . . Piercing Weapon . | . . . Special Melee Weapon . | . . . Unidentified Prototypes . | . . . Parts Lost 11 | . . 11 Power 3 | . . 3 Propulsion 3 | . . 3 Utility 2 | . . 2 Weapon 3 | . . 3 Highest Loss Streak 8 | . . 8 To Critical Strikes . | . . . Average Backups 6 | . 5 9 Power 1 | . 1 1 Propulsion . | . . . Utility 3 | . 2 5 Weapon 1 | . 1 1 Tool/Special . | . . . Unused Backups 5 | . . 5 Power . | . . . Propulsion . | . . . Utility 3 | . . 3 Weapon 2 | . . 2 Tool/Special . | . . . Average Slot Usage (%) 79 | . 99 57 Engine 9 | . 14 4 Treads 14 | . 27 1 Wheel 2 | . . 4 Device 11 | . 14 9 Storage 14 | . 14 14 Ballistic Gun 20 | . 28 13 Special Weapon 4 | . . 9 Peak Build Rating 10 | 7 8 10 Average Rating 7 | 6 7 7 On Entrance 5 | . 7 8 Avg Prop Armor Cover (%) 5 | . . 5 Naked Turns . | . . . Heaviest Build 32 | 14 29 32 Greatest Support 40 | 40 40 40 Greatest Overweight (x) 10 | 1 . 10 Average Overweight (x) 1 | . . 3 Largest Inventory Capacity 15 | 8 15 15 Average Capacity 12 | 7 10 14 Most Carried 11 | 2 11 11 Average Carried 6 | . 5 9 Final Capacity 15 | 8 15 5 Final Carried 11 | 2 11 5 Class Distribution -------------------- 97% | Mutant Dominant Class ---------------- Mutant | -10/Materials Mutant | -10/Subcaves Resources | -11 -10 -10 ----------- Run | Yrd Mat Sub Matter Collected 545 | 318 144 83 Remotely . | . . . Salvage Created 639 | 192 350 97 Parts 42 | 15 17 10 Haulers Intercepted 1 | . 1 . Recyclers Shooed . | . . . Parts Field Recycled . | . . . Retrieved Matter . | . . . Parts Self-Destructed 10 | . . 10 Prevented . | . . . Parts Restored . | . . . Kills | -11 -10 -10 ------- Run | Yrd Mat Sub Combat Hostiles Destroyed 14 | . 10 4 Melee 1 | . . 1 Guns 12 | . 10 2 Cannons 1 | . . 1 Classes Destroyed 7 | 2 4 1 Tunneler 5 | 5 . . Hauler 1 | . 1 . Recycler 1 | 1 . . Watcher 1 | . 1 . Swarmer 7 | . 6 1 Grunt 4 | . 4 . Subdweller 3 | . . 3 Best Kill Streak 3 | 3 3 1 Combat Bots Only 3 | . 3 1 Max Kills in Single Turn 2 | 1 2 1 Gunslinging 1 | . 1 . Exploded . | . . . Melee 1 | . . 1 Uniques/NPCs Destroyed . | . . . Combat | -11 -10 -10 -------- Run | Yrd Mat Sub Hostile Shots Fired 147 | . 50 97 Missed 43 | . 10 33 Hits 104 | . 40 64 Projectile 104 | . 40 64 Damage Taken 1309 | . 348 961 Core 256 | . 65 191 Absorbed by Shields . | . . . Core Remaining (%) 100 | 100 . . Volleys Fired 65 | 12 31 22 Largest 2 | 2 2 2 Hottest 130 | 40 40 130 Shots Fired 121 | 24 62 35 Gun 116 | 24 62 30 Cannon . | . . . Launcher . | . . . Special 5 | . . 5 Kinetic 116 | 24 62 30 Thermal 5 | . . 5 Explosive . | . . . Electromagnetic . | . . . Robot Hit Streak 22 | 9 16 22 Robot Miss Streak 2 | 1 2 1 Penetration Max . | . . . Secondary Targets 2 | . 2 . Max Gunslinging Chain 1 | . 1 . Shots Hit Robots 93 | 17 43 33 Core Hits 39 | 11 18 10 Critical Kills 1 | . 1 . Critical Parts Destroyed . | . . . Critical Strikes 1 | . 1 . Destroy 1 | . 1 . Melee Attacks . | . . . Impact . | . . . Slashing . | . . . Piercing . | . . . Sneak Attacks . | . . . Combat Hostiles . | . . . Follow-up Attacks . | . . . Damage Inflicted 1017 | 179 441 397 Guns 949 | 179 439 331 Cannons . | . . . Explosions . | . . . Melee . | . . . Ramming 11 | . 2 9 Kinetic 949 | 179 439 331 Thermal 57 | . . 57 Explosive . | . . . Electromagnetic . | . . . Impact . | . . . Slashing . | . . . Piercing . | . . . Highest Corruption . | . . . Average Corruption . | . . . Corruption Purged . | . . . Corruption Blocked . | . . . Overload Shots . | . . . Overflow Damage . | . . . Projectiles . | . . . Explosions . | . . . Melee . | . . . Knockbacks . | . . . Impact . | . . . Kinetic . | . . . Secondary . | . . . Self-Inflicted Damage . | . . . Shots . | . . . Rammed 9 | . 1 8 Targets Rammed 9 | . 1 8 Kicked . | . . . Crushed . | . . . Highest Temperature 9 | . 9 . Average Temperature 7 | . 7 . Received Heat Transfer 213 | . 27 186 Siege Activations . | . . . Martial Activations . | . . . Shielding Activations . | . . . Robots Disrupted . | . . . Combat Hostiles . | . . . Robots Corrupted . | . . . Combat Hostiles . | . . . Parts Fried . | . . . Impact Corruptions . | . . . Robots Melted . | . . . Combat Hostiles . | . . . Parts Melted . | . . . Heat Transferred 400 | . . 400 Parts Sabotaged . | . . . Parts Stolen . | . . . Parts Stripped . | . . . Power Chain Reactions . | . . . Alert | -11 -10 -10 ------- Run | Yrd Mat Sub Maximum Alert Level . | . . . Low Security (%) 100 | 100 100 . Level 1 . | . . . Level 2 . | . . . Level 3 . | . . . Level 4 . | . . . Level 5 . | . . . High Security . | . . . Max Security . | . . . Peak Influence 114 | 15 114 . Initial . | . . . Average 30 | 2 36 . Influence Increases 399 | 30 274 95 Destroy 0b10 Robot/C 220 | . 200 20 Destroy 0b10 Robot/NC 40 | 30 10 . Destroy Leader 44 | . 44 . Successful Hack 19 | . 19 . Destroy Structure 1 | . 1 . Lose Combat Pursuer 75 | . . 75 Influence Decreases 310 | 30 205 75 Entered New Map 34 | . . 34 Time Decay 251 | 30 205 16 Lost Part 25 | . . 25 Squads Dispatched 2 | . 2 . Investigation . | . . . Extermination . | . . . Reinforcement 2 | . 2 . Assault . | . . . Garrison . | . . . Intercept . | . . . Searches Triggered . | . . . Construction Impeded . | . . . Haulers Reinforced . | . . . Active Scanning Responses . | . . . Cargo Convoy Interrupts . | . . . Stealth | -11 -10 -10 --------- Run | Yrd Mat Sub Distress Signals 1 | . 1 . Communications Jammed . | . . . Distress Signals . | . . . Times Spotted 31 | . 20 11 Peak Tracking Total 5 | . 5 3 Tactical Retreats 2 | . . 2 Traps | -11 -10 -10 ------- Run | Yrd Mat Sub Traps Triggered 2 | . 2 . Indirectly . | . . . Trap Hack Attempts . | . . . Triggered . | . . . Disarmed . | . . . Reprogrammed . | . . . Reused . | . . . Traps Extracted . | . . . Installed . | . . . Triggered . | . . . Machines | -11 -10 -10 ---------- Run | Yrd Mat Sub Machines Disabled . | . . . Max in Single Turn . | . . . Machines Repaired . | . . . Machines Dismantled . | . . . Machines Sabotaged . | . . . Overloaded Fab Kills . | . . . Hacking | -11 -10 -10 --------- Run | Yrd Mat Sub Machines Accessed 7 | . 7 . Terminals 7 | . 7 . Fabricators . | . . . Repair Stations . | . . . Recycling Units . | . . . Scanalyzers . | . . . Garrison Access . | . . . Total Hacks 22 | . 22 . Successful 8 | . 8 . Failed 13 | . 13 . Catastrophic 2 | . 2 . Database Lockouts 1 | . 1 . Manual 12 | . 12 . Terminals 22 | . 22 . Fabricators . | . . . Repair Stations . | . . . Recycling Units . | . . . Scanalyzers . | . . . Garrison Access . | . . . Terminal Hacks 8 | . 8 . Record 3 | . 3 . Robot Analysis 3 | . 3 . Prototype ID Bank 1 | . 1 . Unreport Threat 1 | . 1 . Fabricator Hacks . | . . . Repair Station Hacks . | . . . Recycling Unit Hacks . | . . . Scanalyzer . | . . . Garrison Access Hacks . | . . . Unauthorized Hacks . | . . . Terminals . | . . . Fabricators . | . . . Repair Stations . | . . . Recycling Units . | . . . Scanalyzers . | . . . Garrison Access . | . . . Data Cores Recovered . | . . . Used . | . . . Hacking Detections 7 | . 7 . Full Trace Events 2 | . 2 . Feedback Events . | . . . Feedback Blocked . | . . . Robot Schematics Acquired . | . . . Robots Built . | . . . Authchips . | . . . Time . | . . . Total Robot Build Rating . | . . . Part Schematics Acquired . | . . . Parts Built . | . . . Authchips . | . . . Time . | . . . Total Part Build Rating . | . . . Part Studies Acquired . | . . . Parts Repaired . | . . . Time . | . . . Parts Recycled . | . . . Recycled Matter . | . . . Retrieved Matter . | . . . Retrieved Components . | . . . Parts Scanalyzed . | . . . Part Schematics Acquired . | . . . Parts Damaged . | . . . Bothacking | -11 -10 -10 ------------ Run | Yrd Mat Sub Used RIF Installer . | . . . Robots Hacked . | . . . Non-combat . | . . . Combat . | . . . Robot Hacks Applied . | . . . Relay Couplers Released . | . . . Fabnet Peak Effective % . | . . . Robots Rewired . | . . . Allies Hacked . | . . . Hacks Repelled . | . . . Allies | -11 -10 -10 -------- Run | Yrd Mat Sub Total Allies . | . . . Largest Group . | . . . Highest-Rated Group . | . . . Highest-Rated Ally . | . . . Total Orders . | . . . Ally Attacks . | . . . Total Damage . | . . . Kills . | . . . Allies Corrupted . | . . . Allies Melted . | . . . Intel | -11 -10 -10 ------- Run | Yrd Mat Sub Active Infowar (turns) 1928 | 147 1085 696 Optics 65 | . . 65 Seismic 1863 | 147 1085 631 Robot Analysis Total 3 | . 3 . Derelict Logs Recovered 1 | . . 1 Drone Launches . | . . . Drone Recoveries . | . . . Exploration | -11 -10 -10 ------------- Run | Yrd Mat Sub Turns Passed 2348 | 227 1085 1036 Spaces Moved 1102 | 119 588 395 Core 170 | 11 . 159 Treads 700 | 108 588 4 Legs . | . . . Wheels 232 | . . 232 Hover . | . . . Flight . | . . . Fastest Speed 50 | 50 160 50 Average Speed 187 | 153 160 238 Slowest Speed 550 | 160 160 550 Overloaded Moves . | . . . Propulsion Burnouts . | . . . Robots Hopped . | . . . Potential Cave-ins . | . . . Cave-ins Triggered . | . . . Exploration Rate (%) 43 | 7 92 30 Regions Visited 2 Branch Regions 1 Pre-discovered Areas 1 | . . 1 Known Exits Taken . | . . . Unknown Exits Taken 2 | 1 1 . Scrap Searched . | . . . Spaces Dug . | . . . Terrain Destroyed . | . . . Melee . | . . . Projectile . | . . . AOE . | . . . Terrain Rammed . | . . . Walls Destroyed . | . . . Machines Disabled . | . . . Actions | -11 -10 -10 --------- Run | Yrd Mat Sub Total 1257 | 139 674 444 Wait 49 | . 45 4 Move 1100 | 118 587 395 Hop . | . . . Pick Up 9 | 2 7 . Fast Attach 14 | 7 1 6 Attach 3 | . . 3 Detach 2 | . . 2 Swap 3 | . 2 1 Drop 3 | . . 3 Fire 65 | 12 31 22 Melee . | . . . Ram 1 | . . 1 Kick . | . . . Crush 8 | . 1 7 Escape Stasis . | . . . Rewire . | . . . Trap . | . . . Miscellaneous . | . . . Route ------- -11/Scrapyard -10/Materials (discovered 4 exits: [*Mat x2] / [*Min] / [*Sub]) -10/Subcaves (discovered 2 exits: [*Mat] / *Rec) History --------- Turn | Location | Event 33 | -11/Scrapyard | Discovered new exit (range 16) 228 | -11/Scrapyard | Entered Materials 305 | -10/Materials | Build established: Mutant 724 | -10/Materials | Discovered new exit (range 6) 738 | -10/Materials | Central database locked down 889 | -10/Materials | Discovered new exit (range 14) 1030 | -10/Materials | Discovered new exit (range 7) 1301 | -10/Materials | Discovered new exit (range 8) 1313 | -10/Materials | Entered Subcaves 1314 | -10/Subcaves | Approached by a straggling Scientist 1317 | -10/Subcaves | Identified exit to Recycling 1399 | -10/Subcaves | Lost 8 parts (2p3n1u2w) 1642 | -10/Subcaves | Learned location of Zion (-6) 1642 | -10/Subcaves | Met a Zionite searching for "candidates" 1667 | -10/Subcaves | A swath of the cavern ceiling suddenly collapsed 1735 | -10/Subcaves | Core integrity fell below 50% 2208 | -10/Subcaves | Discovered new exit (range 10) 2348 | -10/Subcaves | Core integrity fell below 20% 2349 | -10/Subcaves | Destroyed by Autobeam Turret with Autobeam Last Messages --------------- you could die at any moment. For your health and safety might I suggest a trip to Zion?" World map updated: -6/Zion. A swath of the cavern ceiling suddenly collapses. 01714_ GG-E1G(R): "ECOKILL!" 01717_ Sub. Monowheel shoots sparks and powers down. 01758_ Ion Engine destroyed. 01760_ Seismic Detector destroyed. 01761_ GG-E1G(R) destroyed. 02208_ EXIT=FOUND 02300_ Subatomizers dissect the Sub. Optics. 02313_ Flamer destroyed. 02327_ S-10 Pest destroyed. 02329_ Acquired 10 matter. 02332_ Lgt. Assault Rifle fries itself beyond repair. 02336_ Flight Unit fries itself beyond repair. 02338_ Acquired 19 matter. 02340_ Subatomizers dissect the Lgt. Ion Engine. 02342_ Dropped Lrg. Storage Unit. 02344_ Dropped Sub. Machine Gun. Map ----- +----------------------------------------------------+ | ??????????????????????????????# ###??????????? | | ?????????????????????????????# # ##????????## | | ?????????????????????????????## # #####???? | | ???????????????????????????# ## ##??# | | ???????????????????????????# # #?# | | ???????????????????????????# ### | | ???????????????????????????# | | ????????????????????????? # ####### | | ????????????????????????? #### #??????# | | ???????????????????????? ???# ???????## | | ????????????????????????## ???# ?#??????## | | ?????????????????????????# ?? ## ##??????## | | ???????????????????????#??? %* #???????## # | | ??????????????????????? " = ????????# # | | ???????????????????????? " ??????# | | ???????????????????????? " ? ????# | | ????????????????????????? " " ????## | | ?????????????????????????? " """ "?????## | | ???????????????????????????# " " " """????# | | ???????????????????????????# "" "" """"????# | | ????????????????????######## """"""""" "#?????# | | ????????????????????#""" "# "%%!]"" #?????## | | ????????????????????#" # "!%"[ "" #?????## | | ????????????????????#" # ""=!" ""###?????# | | ???????????????????##""t "![! "##??????## | | ???????????????????#> @ &## "#####???# | | ???????????????????##""t #### ## ##?## | | ????????????????????#" # #?## ### | | ????????????????????#" # ### ## | | ????????????????????#""" "###### ## ### | | ????????????????????######### # ### | | ???????????????????????????# | | ???????????????????????????# #### < | | ???????????????????????????# #???## ## # | | ???????????????????????????####?????########## # | | ?????????????????????????????????????????????##### | | ?????????????????????????????????????????????????? | | ?????????????????????????????????????????????????? | | ?????????????????????????????????????????????????? | | ?????????????????????????????????????????????????? | | ?????????????????????????????????????????????????? | | ?????????????????????????????????????????????????? | | ?????????????????????????????????????????????????? | | ?????????????????????????????????????????????????? | | ?????????????????????????????????????????????????? | | ?????????????????????????????????????????????????? | | ?????????????????????????????????????????????????? | | ?????????????????????????????????????????????????? | | ?????????????????????????????????????????????????? | | ?????????????????????????????????????????????????? | +----------------------------------------------------+ Best States ------------- Heat Dissipation 25 Energy Generation 15 Energy Capacity 250 Matter Stores 300 Matter Capacity 300 Sight Range 21 Terrain Scan Density 10 Evasion (%) 40 Recoil Reduction 2 Item Schematics ----------------- None Robot Schematics ------------------ None Fabricated ------------ Nothing Repaired ---------- Nothing Studied --------- None Alien Tech Used ----------------- None Achievements -------------- None Challenges ------------ None Game ------ Seed IntegratedResetGreatsword Manual? 0 Play Time 00:16:40 Cumulative 66.2 hours Start 2025.12.01 @ 01:55:55 End 2025.12.01 @ 02:15:42 Sessions 1 Manual Loads 0 Difficulty Rogue Special Mode None Game No. 33 Rogue 33 Adventurer 0 Explorer 0 Win Type - Total 1 Types 1/0/0/0/0/0/0/0/0/0 Lore% 40 Gallery% 38 Achievement% 32 Wizard Run 0 Options --------- Layout 0 ASCII 0 Keyboard 1 Movement Arrows Keybinds 0 Fullscreen 2 Font 18/SmallcapsGlow Map View 76x50 Zoom Use 0% Tactical HUD 1 Map Filters NONE Filters NONE Steam 1 RUN: 7e7a081e-2df8-4bae-a418-63909cd517f7